Cogmind - Beta 12 @@@ ROGUE MODE // 2024.01.01 @ 20:42:08 Player: hanzu Result: Destroyed by G-67 Veteran with Field Laser Performance ------------- Evolutions (7) 3500 Regions Visited (18) 3600 Robots Destroyed (337) 1685 Value Destroyed (11663) 11663 Prototype IDs (28) 560 Alien Tech Used (0) 0 Bonus (5732) 5732 TOTAL SCORE: 26740 Bonus ------- High Alert Combat Kills 2992 Follower Combat Kills 2794 Entered Garrisons 200 A7 Reached Mainframe 300 Met R17 at Cetus 500 Friendly Fire -1054 Cogmind --------- Core Integrity 0/1300 Matter 214/300 Energy 95/100 System Corruption 4% Temperature Cool (21) Movement Core (150) Ox2 Location -3/Research Parts ------- > --- POWER (2) -------- (None) > --- PROPULSION (6) --- (None) > --- UTILITY (9) ------ Improved Targeting Computer Improved Targeting Computer Improved System Shield > --- WEAPON (4) ------- Enhanced Force Lance > --- INVENTORY (5) ---- Light Antimatter Reactor Huge Storage Unit Light Antimatter Cannon Peak State ------------ > --- POWER ------------ Reinforced Antimatter Reactor Quantum Reactor > --- PROPULSION ------- Heavy Siege Treads Centrium Heavy Treads Centrium Heavy Treads > --- UTILITY ---------- Improved Cooling System Advanced Cooling System Huge Storage Unit Advanced Energy Well Centrium Medium Armor Plating Improved Focal Shield Advanced Shield Generator > --- WEAPON ----------- Advanced Variable Charge Gun Neutron Cannon Advanced KE Penetrator Enhanced Gauss Cannon > --- INVENTORY -------- Antimatter Reactor Improved Treads Centrium Heavy Treads Huge Storage Unit High-capacity Matter Pod Structural Scanner Seismic Detector Improved Weapon Cycler Hardened Heavy Armor Plating Improved Medium Armor Plating Layered Light Armor Plating Layered Heavy Armor Plating Centrium Medium Armor Plating Centrium Medium Armor Plating Long-range Tractor Beam Advanced Variable Charge Gun Advanced Variable Charge Gun KE Penetrator Bore Cannon Mini Grenade Launcher Mini Grenade Launcher Great Maul [Rating: 147] Favorites ----------- Power Antimatter Reactor Engine Light Angular Momentum Engine Reactor Antimatter Reactor Propulsion Light Treads Treads Light Treads Leg Aluminum Leg Wheel Armored Wheel Hover Unit Antigrav System Flight Unit Xenon Bombardment Thruster Utility Huge Storage Unit Device Cooling System Storage Huge Storage Unit Processor Improved Targeting Computer Hackware Hacking Suite Protection Hardened Heavy Armor Plating Weapon Advanced Beam Cannon Energy Gun Medium Laser Energy Cannon Advanced Beam Cannon Ballistic Gun Improved Assault Rifle Ballistic Cannon Hardcell Cannon Launcher Mini Grenade Launcher Impact Weapon Great Maul Piercing Weapon Enhanced Force Lance Build | -11 -10 -10 -9 -9 -9 -8 -8 -7 -7 -7 -6 -5 -5 -5 -4 -4 -4 -3 ------- Run | Jun Mat Min Mat Min Exi Min Mat Fac Gar Fac Fac Fac Ext Cet Fac Was Fac Res Slots Evolved 14 | . . . 2 . . . 2 2 . . 2 2 . . 2 . . 2 Power 1 | . . . . . . . . . . . . 1 . . . . . . Propulsion 4 | . . . 1 . . . 1 . . . . . . . 2 . . . Utility 7 | . . . 1 . . . 1 2 . . . 1 . . . . . 2 Weapon 2 | . . . . . . . . . . . 2 . . . . . . . Parts Attached 353 | 5 14 3 37 7 . 2 60 24 37 20 21 4 43 6 7 8 28 27 Power 26 | 1 2 1 3 . . 1 2 . 3 . 1 1 3 1 . . 3 4 Engine 14 | 1 2 1 3 . . 1 2 . 2 . . . 2 . . . . . Core . | . . . . . . . . . . . . . . . . . . . Reactor 12 | . . . . . . . . . 1 . 1 1 1 1 . . 3 4 Propulsion 63 | 2 4 . 6 . . . 10 4 3 . 4 . 8 2 1 3 8 8 Treads 38 | 2 3 . 4 . . . 8 2 3 . 2 . 7 2 1 3 1 . Leg 1 | . 1 . . . . . . . . . . . . . . . . . Wheel 11 | . . . 2 . . . 2 2 . . 2 . 1 . . . 2 . Hover 5 | . . . . . . . . . . . . . . . . . 5 . Flight 8 | . . . . . . . . . . . . . . . . . . 8 Utility 131 | . 3 1 12 1 . 1 20 14 13 12 6 3 22 1 3 1 12 6 Device 75 | . 2 1 6 . . 1 8 6 7 8 4 3 18 . 2 . 7 2 Storage 9 | . 1 . 2 . . . . 1 . 1 . . . . 1 1 1 1 Processor 3 | . . . . . . . . . . . . . . . . . 1 2 Hackware 8 | . . . . . . . 2 1 1 1 . . 1 . . . 1 1 Protection 36 | . . . 4 1 . . 10 6 5 2 2 . 3 1 . . 2 . Artifact . | . . . . . . . . . . . . . . . . . . . Weapon 133 | 2 5 1 16 6 . . 28 6 18 8 10 . 10 2 3 4 5 9 Energy Gun 18 | 2 3 . 2 . . . 4 1 1 . . . 3 1 . 1 . . Energy Cannon 22 | . . 1 5 1 . . 4 1 2 . . . 1 . 1 . 4 2 Ballistic Gun 22 | . 2 . 4 2 . . 8 . . . . . 2 . 1 . 1 2 Ballistic Cannon 23 | . . . . . . . . 1 7 5 5 . 3 . 1 1 . . Launcher 34 | . . . 4 3 . . 11 2 5 1 5 . 1 . . 2 . . Special Weapon . | . . . . . . . . . . . . . . . . . . . Impact Weapon 9 | . . . 1 . . . 1 1 3 2 . . . 1 . . . . Slashing Weapon . | . . . . . . . . . . . . . . . . . . . Piercing Weapon 5 | . . . . . . . . . . . . . . . . . . 5 Special Melee Weapon . | . . . . . . . . . . . . . . . . . . . Unidentified Prototypes 17 | . 1 . 3 . . . 3 . . . . . . 3 3 . 3 1 Corrupted Parts 2 | . 1 . . . . . . . . . . . . . . 1 . . System Corruption 8 | . 2 . . . . . . . . . . . . . . 6 . . Parts Lost 89 | . 2 . 7 . . . 9 . 9 . 3 . 14 . 1 12 15 17 Power 10 | . . . 3 . . . . . 1 . . . 1 . . 2 1 2 Propulsion 28 | . 1 . . . . . 4 . 4 . 1 . 2 . . 2 7 7 Utility 33 | . . . 3 . . . 4 . 4 . . . 6 . 1 6 6 3 Weapon 18 | . 1 . 1 . . . 1 . . . 2 . 5 . . 2 1 5 Highest Loss Streak 9 | . 1 . 3 . . . 2 . 7 . 2 . 3 . 1 7 9 8 To Critical Strikes 2 | . . . . . . . . . . . . . . . . 2 . . Average Slot Usage (%) 84 | . 95 100 96 100 100 100 97 98 77 75 75 76 82 93 83 48 34 20 Engine 5 | . 13 14 9 11 11 11 9 7 3 . . . 4 . . . . . Reactor 2 | . . . . . . . . . 3 7 6 11 3 10 10 6 2 . Treads 16 | . 25 28 23 11 11 11 24 10 10 15 14 . 15 16 15 15 2 . Wheel 6 | . . . 9 22 22 22 11 19 6 . 1 11 1 . . . 3 . Device 15 | . 12 14 18 11 11 11 13 16 13 17 13 17 19 29 25 7 3 1 Storage 8 | . 13 14 11 11 11 11 9 7 7 7 6 5 5 5 5 7 4 2 Hackware 1 | . . . . . . . . 12 1 1 6 5 2 . . . 2 1 Protection 7 | . . . 2 11 11 11 11 6 14 9 6 5 7 5 5 . 1 . Energy Gun 4 | . 23 14 2 . . . 7 2 1 . . . 5 8 5 1 . . Energy Cannon 3 | . . 5 16 10 . . . 1 4 3 . . . . 4 . 2 . Ballistic Gun 4 | . 3 8 2 11 22 22 8 . . . . . 1 5 5 2 1 2 Ballistic Cannon 5 | . . . . . . . . . 4 9 19 17 10 6 5 2 . . Naked Turns 25 | . . . . . . . . . . . . . . . . . 25 . Heaviest Build 187 | 7 18 20 99 99 98 99 115 131 139 142 155 180 187 170 174 174 112 13 Greatest Support 240 | 40 40 40 60 24 24 24 60 36 145 145 145 56 130 150 230 240 160 20 Greatest Overweight (x) 30 | . . . 4 4 4 4 9 7 30 . 2 3 5 1 . . 3 4 Average Overweight (x) 1 | . . . 2 4 4 4 6 2 1 . 1 3 1 1 . . . . Largest Inventory Capacity 25 | 5 8 8 25 25 25 25 25 25 25 25 25 25 25 25 25 25 25 5 Average Capacity 21 | 5 7 8 19 25 25 25 25 25 25 25 25 25 25 25 25 14 5 5 Most Carried 25 | 5 8 8 25 25 25 25 25 25 25 25 25 19 25 25 25 25 7 5 Average Carried 19 | 3 5 7 15 24 25 24 24 22 23 24 23 18 22 24 22 11 3 3 Final Capacity 25 | 5 8 8 25 25 25 25 25 25 25 25 25 25 25 25 25 5 5 5 Final Carried 25 | 4 8 8 24 25 25 25 23 25 25 25 20 18 25 24 25 3 4 3 Class Distribution -------------------- 55% | Mutant 14% | Tank 14% | Scavenger-Tank 13% | Scavenger-Mutant Dominant Class ---------------- Mutant | -10/Materials Mutant | -10/Mines Mutant | -9/Materials Mutant | -9/Mines Mutant | -9/Exiles Mutant | -8/Mines Scavenger-Mutant | -8/Materials Hacker-Mutant | -7/Factory Mutant | -7/Garrison Mutant | -7/Factory Tank | -6/Factory Mutant | -5/Factory Scavenger-Tank | -5/Extension Scavenger-Tank | -5/Cetus Scavenger-Tank | -4/Factory Scavenger-Mutant | -4/Waste Mutant | -4/Factory Mutant | -3/Research Resources | -11 -10 -10 -9 -9 -9 -8 -8 -7 -7 -7 -6 -5 -5 -5 -4 -4 -4 -3 ----------- Run | Jun Mat Min Mat Min Exi Min Mat Fac Gar Fac Fac Fac Ext Cet Fac Was Fac Res Matter Collected 8857 | 250 175 108 474 225 . 98 1254 257 1141 608 978 86 1810 200 527 . 356 310 Remotely 922 | . . . . . . . . . 190 . 621 39 72 . . . . . Salvage Created 12517 | 96 763 191 1750 595 . 216 2750 174 1110 707 781 41 1042 180 907 476 335 403 Parts 657 | 5 50 17 99 36 . 13 152 11 50 56 28 4 48 10 33 2 23 20 Haulers Intercepted 15 | . 2 . 5 . . . 6 1 . 1 . . . . . . . . Recyclers Shooed 7 | . 1 . . . . . 1 . . . 2 . 2 . . . 1 . Parts Field Recycled . | . . . . . . . . . . . . . . . . . . . Retrieved Matter . | . . . . . . . . . . . . . . . . . . . Parts Self-Destructed . | . . . . . . . . . . . . . . . . . . . Prevented . | . . . . . . . . . . . . . . . . . . . Kills | -11 -10 -10 -9 -9 -9 -8 -8 -7 -7 -7 -6 -5 -5 -5 -4 -4 -4 -3 ------- Run | Jun Mat Min Mat Min Exi Min Mat Fac Gar Fac Fac Fac Ext Cet Fac Was Fac Res Combat Hostiles Destroyed 248 | . 16 3 29 13 . 4 54 5 28 16 19 4 21 4 15 2 7 8 Melee 11 | . . . . . . . 2 . 3 . . . . . . . 3 3 Guns 64 | . 15 3 7 . . 4 20 . 1 . . . 4 3 5 . . 2 Cannons 106 | . . . 17 6 . . 3 1 14 16 10 4 17 1 10 1 3 3 AOE 58 | . . . 3 6 . . 27 4 8 . 9 . . . . 1 . . Classes Destroyed 21 | 2 7 . 4 1 . . 1 . 1 1 1 . 1 . 1 1 . . Worker 14 | . 1 1 1 . . 1 4 1 . 1 . . . . . . . 4 Builder 14 | . 3 1 2 2 . . 3 . . 1 1 . 1 . . . . . Tunneler 8 | 1 . . . 4 . 1 1 . . 1 . . . . . . . . Hauler 15 | . 2 . 5 . . . 6 1 . 1 . . . . . . . . Recycler 14 | 1 . . 2 1 . . 5 . . 1 2 . 2 . . . . . Mechanic 2 | . . . 1 . . . . . . . . . . . . . 1 . Operator 6 | . 1 . 1 . . . 2 . . 1 1 . . . . . . . Watcher 17 | . 2 . 4 . . . 4 . 1 3 1 . 1 . . . 1 . Swarmer 64 | . 6 3 4 2 . 1 7 4 10 5 . 4 6 1 . . 4 7 Saboteur 1 | . . . . . . . . . . . . . . . 1 . . . Grunt 110 | . 10 . 14 10 . 2 33 1 12 5 6 . 9 1 7 . . . Brawler 5 | . . . 1 . . 1 1 . . . 1 . . . 1 . . . Duelist 7 | . . . 2 2 . . 1 . . 1 . . . . 1 . . . Protector 4 | . . . . 1 . . 2 . . . . . 1 . . . . . Sentry 28 | . . . 8 . . . 9 . 5 1 2 . 2 . 1 . . . Specialist 3 | . . . . . . . . . . . 3 . . . . . . . Hunter 10 | . . . . . . . . . 1 . 4 . . . 4 . 1 . Programmer 10 | . . . . . . . . . . 4 3 . . . . . 2 1 Heavy 1 | . . . . . . . 1 . . . . . . . . . . . Behemoth 2 | . . . . . . . . . . . . . 2 . . . . . Compactor 2 | . . . . . . . . . . . . . . . . 2 . . Cetus Guard 2 | . . . . . . . . . . . . . . 2 . . . . Thug 3 | . . 2 . . . . . . . . . . 1 . . . . . Guerrilla 1 | . . . . . . . . . . . . . 1 . . . . . Best Kill Streak 16 | 1 7 3 6 8 . 3 12 7 4 5 16 4 3 2 9 1 4 4 Combat Bots Only 13 | . 5 3 6 5 . 3 10 5 4 3 13 4 3 2 9 1 4 3 Max Kills in Single Turn 4 | 1 2 1 3 2 . 2 4 4 3 2 3 1 2 1 2 1 1 1 Gunslinging 1 | . 1 . . . . . . . . . . . . . . . . . Exploded 4 | . . . 2 2 . . 4 3 3 . 3 . . . . 1 . . Melee 1 | . . . . . . . 1 . 1 . . . . . . . 1 1 Uniques/NPCs Destroyed . | . . . . . . . . . . . . . . . . . . . Combat | -11 -10 -10 -9 -9 -9 -8 -8 -7 -7 -7 -6 -5 -5 -5 -4 -4 -4 -3 -------- Run | Jun Mat Min Mat Min Exi Min Mat Fac Gar Fac Fac Fac Ext Cet Fac Was Fac Res Damage Taken 21558 | . 510 67 1042 433 . 133 2769 90 2317 627 1549 199 2821 78 1037 1518 3977 2391 Core 3249 | . 92 . 106 90 . 27 250 41 270 18 104 17 81 . 69 128 651 1305 Absorbed by Shields 1099 | . . . . . . . . . 94 . . . 450 29 390 136 . . Reduced by Siege Mode 103 | . . . . . . . . . . . . . 103 . . . . . Regen/Repaired (Parts) 1262 | . 85 . . . . . 94 . . 17 504 . 562 . . . . . Core Remaining (%) 64 | 100 . 63 . . . 44 54 . . 53 87 . . 90 . . 26 . Volleys Fired 792 | 9 66 20 97 34 . 13 162 13 84 54 35 10 91 9 42 18 14 21 Largest 4 | 2 2 2 2 2 . 2 2 2 2 2 3 1 4 4 4 4 3 2 Hottest 262 | 90 100 110 136 91 . 46 129 129 133 133 188 75 246 245 262 262 225 105 Shots Fired 1563 | 12 121 40 186 51 . 26 275 21 133 106 79 10 254 30 135 38 24 22 Gun 736 | 12 121 37 72 17 . 26 229 5 9 . . . 95 19 63 13 4 14 Cannon 744 | . . 3 110 25 . . 16 10 108 105 70 10 159 11 72 17 20 8 Launcher 83 | . . . 4 9 . . 30 6 16 1 9 . . . . 8 . . Special . | . . . . . . . . . . . . . . . . . . . Kinetic 764 | . 7 18 32 17 . 26 123 . 61 77 70 10 179 19 84 23 4 14 Thermal 691 | 9 96 22 150 25 . . 122 15 56 28 . . 75 11 51 7 16 8 Explosive 83 | . . . 4 9 . . 30 6 16 1 9 . . . . 8 . . Electromagnetic 25 | 3 18 . . . . . . . . . . . . . . . 4 . Robot Hit Streak 23 | 3 14 8 15 7 . 8 18 4 12 8 7 2 23 10 8 9 4 5 Robot Miss Streak 7 | 1 3 3 4 3 . 4 4 2 6 2 4 1 7 2 5 2 3 1 Penetration Max 1 | . . . . . . . . . . 1 . . 1 1 1 . . . Secondary Targets 6 | . 3 . . . . 1 2 . . . . . . . . . . . Max Gunslinging Chain 1 | . 1 . . . . 1 1 . . . . . . . . . . . Shots Hit Robots 994 | 8 84 26 120 27 . 18 200 7 88 62 45 6 153 21 70 19 13 27 Core Hits 559 | 3 39 10 53 33 . 8 147 9 48 27 43 3 51 11 35 13 12 14 Critical Kills 15 | . . . . 1 . . 2 . 2 1 . . 4 1 3 . 1 . Critical Parts Destroyed 20 | . . . . . . . . . 3 . . . 9 2 6 . . . Critical Strikes 86 | . 5 . 4 1 . . 10 . 8 3 8 1 26 6 11 . 1 2 Burn 20 | . 5 . 4 . . . 8 . . . . . 2 1 . . . . Meltdown 3 | . . . . 1 . . . . . 1 . . . . . . 1 . Destroy 30 | . . . . . . . 1 . . . . . 14 5 10 . . . Blast 24 | . . . . . . . . . 2 2 8 1 10 . 1 . . . Smash 7 | . . . . . . . 1 . 6 . . . . . . . . . Impale 2 | . . . . . . . . . . . . . . . . . . 2 Melee Attacks 56 | . . . 3 . . . 6 1 12 8 . . . 13 . . . 13 Impact 43 | . . . 3 . . . 6 1 12 8 . . . 13 . . . . Slashing . | . . . . . . . . . . . . . . . . . . . Piercing 13 | . . . . . . . . . . . . . . . . . . 13 Sneak Attacks 2 | . . . . . . . . . . . . . . . . . . 2 Combat Hostiles . | . . . . . . . . . . . . . . . . . . . Follow-up Attacks . | . . . . . . . . . . . . . . . . . . . Damage Inflicted 35212 | 102 1172 300 2501 1446 . 304 7156 452 2948 2263 3953 375 5503 553 2413 1953 801 1017 Guns 8878 | 102 1107 265 723 97 . 304 2926 40 160 . . . 1316 387 890 257 76 228 Cannons 15013 | . . 35 1425 398 . . 246 83 1697 2263 2015 375 4148 166 1348 224 381 209 Explosions 9992 | . 65 . 311 951 . . 3847 329 647 . 1938 . . . 175 1470 259 . Melee 1121 | . . . 39 . . . 137 . 365 . . . . . . . . 580 Ramming 208 | . . . 3 . . . . . 79 . . . 39 . . 2 85 . Kinetic 13679 | . 25 98 266 97 . 304 1418 . 978 1926 2015 375 4253 328 975 317 76 228 Thermal 10267 | 75 930 202 1882 398 . . 1908 123 879 337 . . 1211 225 1407 164 317 209 Explosive 9598 | . . . 311 951 . . 3693 329 647 . 1938 . . . . 1470 259 . Electromagnetic 339 | 27 217 . . . . . . . . . . . . . 31 . 64 . Impact 541 | . . . 39 . . . 137 . 365 . . . . . . . . . Slashing . | . . . . . . . . . . . . . . . . . . . Piercing 580 | . . . . . . . . . . . . . . . . . . 580 Highest Corruption 35 | . 6 6 . . . . . . 1 1 3 . 1 1 . 29 35 4 Average Corruption 5 | . 5 6 . . . . . . 1 1 2 . 1 1 . 15 29 2 Corruption Purged 2 | . . . . . . . . . . 2 . . . . . . . . Corruption Blocked . | . . . . . . . . . . . . . . . . . . . Effects 148 | . 29 29 . . . . . . 8 6 6 . 7 1 . 12 49 1 Message Errors 36 | . 4 10 . . . . . . . 2 2 . 1 1 . . 15 1 Matter Fused 31 | . 8 4 . . . . . . 1 1 2 . 2 . . 3 10 . Heat Flow Errors 18 | . 4 4 . . . . . . 1 1 2 . 1 . . 1 4 . Energy Discharges 12 | . 3 4 . . . . . . 1 . . . . . . 1 3 . Parts Rejected 7 | . 2 . . . . . . . 1 . . . . . . 3 1 . Parts Fused 2 | . 1 1 . . . . . . . . . . . . . . . . Data Loss (minor) 10 | . 1 2 . . . . . . 1 . . . 2 . . . 4 . Data Loss (major) 8 | . 2 2 . . . . . . 1 1 . . . . . 1 1 . Misfires 4 | . 1 1 . . . . . . . 1 . . . . . 1 . . Alerts 6 | . 2 . . . . . . . 1 . . . 1 . . . 2 . Misdirections 10 | . . . . . . . . . . . . . . . . 1 9 . Weapon Failures 4 | . 1 1 . . . . . . 1 . . . . . . 1 . . Overload Shots . | . . . . . . . . . . . . . . . . . . . Overflow Damage 1304 | . . . 28 23 . . 139 16 114 179 156 28 304 . 15 7 47 248 Projectiles 688 | . . . 18 23 . . . . 21 179 79 28 304 . 15 . 6 15 Explosions 282 | . . . 8 . . . 118 16 15 . 77 . . . . 7 41 . Melee 334 | . . . 2 . . . 21 . 78 . . . . . . . . 233 Knockbacks 47 | . . . . . . . 1 . 4 13 9 2 13 1 3 . 1 . Impact 4 | . . . . . . . 1 . 1 . . . 1 . . . 1 . Kinetic 42 | . . . . . . . . . 2 13 9 2 12 1 3 . . . Secondary 1 | . . . . . . . . . 1 . . . . . . . . . Self-Inflicted Damage 530 | . . . 39 33 . . 111 . 122 . . . 1 . . 207 17 . Shots 16 | . . . 1 1 . . 5 . 3 . . . . . . 6 . . Rammed 28 | . . . 1 . . . . . 6 . . . 3 . . 1 17 . Targets Rammed 32 | . . . 1 . . . . . 6 . . . 4 . . 1 20 . Kicked . | . . . . . . . . . . . . . . . . . . . Crushed 4 | . . . . . . . . . . . . . 1 . . . 3 . Highest Temperature 544 | 110 244 229 198 99 . 2 470 15 528 234 402 28 544 340 415 214 268 132 Average Temperature 95 | 47 49 57 48 34 . 2 101 8 117 57 141 16 157 131 87 110 70 63 Received Heat Transfer 3684 | . 213 . 366 96 . 18 1116 27 707 45 240 . 467 9 95 . 69 216 Effects 36 | . . . . . . . . . 3 . 9 . 20 2 2 . . . Shutdowns 11 | . . . . . . . . . . . . . 9 . 2 . . . Energy Bleed 4 | . . . . . . . . . 1 . 1 . 2 . . . . . Interference 10 | . . . . . . . . . 1 . 3 . 4 2 . . . . Short Circuit 4 | . . . . . . . . . 1 . 1 . 2 . . . . . Damage (minor) 3 | . . . . . . . . . . . . . 3 . . . . . Damage (major) 4 | . . . . . . . . . . . 4 . . . . . . . Siege Activations 2 | . . . . . . . . . . . . . 2 . . . . . Total Turns 64 | . . . . . . . . . . . . . 64 . . . . . Longest Duration 33 | . . . . . . . . . . . . . 33 . . . . . Robots Corrupted 1 | . 1 . . . . . . . . . . . . . . . . . Combat Hostiles . | . . . . . . . . . . . . . . . . . . . Parts Fried 6 | . 2 . 1 . . . . . 2 . . . . . . . 1 . Impact Corruptions 6 | . . . 1 . . . 1 . 4 . . . . . . . . . Robots Melted 9 | . 2 . 1 1 . . 2 . 1 1 . . . . . . 1 . Combat Hostiles 6 | . 1 . 1 1 . . 2 . . . . . . . . . 1 . Parts Melted 36 | . 6 . 7 3 . . 12 1 3 2 . . 1 . . . 1 . Heat Transferred 18770 | 222 2986 555 4070 703 . . 3911 222 1591 592 . . 2153 444 618 148 333 222 Parts Sabotaged 2 | . . . . . . . . . . . 2 . . . . . . . Parts Stolen . | . . . . . . . . . . . . . . . . . . . Parts Stripped . | . . . . . . . . . . . . . . . . . . . Power Chain Reactions 3 | . 1 . . . . . . . . . . . . . 2 . . . Missiles Intercepted . | . . . . . . . . . . . . . . . . . . . Alert | -11 -10 -10 -9 -9 -9 -8 -8 -7 -7 -7 -6 -5 -5 -5 -4 -4 -4 -3 ------- Run | Jun Mat Min Mat Min Exi Min Mat Fac Gar Fac Fac Fac Ext Cet Fac Was Fac Res Peak Influence 1645 | 10 339 80 541 437 . 179 1254 707 1276 730 686 452 1576 1645 1264 450 590 591 Initial 921 | . . 42 . 178 . . . 570 354 669 347 336 221 882 921 440 273 207 Average 478 | 7 168 38 233 299 . 96 604 587 896 648 375 389 483 1208 1063 424 373 332 Maximum Alert Level 5 | . 1 . 2 2 . . 4 3 4 3 2 2 4 5 4 2 2 2 Low Security (%) 22 | 100 62 100 53 1 . 100 16 . . . 5 . 8 . . . . . Level 1 29 | . 37 . 34 86 . . 4 . 2 . 75 55 59 . . 3 65 72 Level 2 23 | . . . 11 11 . . 36 80 17 78 19 44 5 . . 96 34 27 Level 3 17 | . . . . . . . 38 19 48 21 . . 17 43 59 . . . Level 4 6 | . . . . . . . 4 . 30 . . . 8 42 40 . . . Level 5 . | . . . . . . . . . . . . . . 13 . . . . High Security . | . . . . . . . . . . . . . . . . . . . Max Security . | . . . . . . . . . . . . . . . . . . . Sterilizations 1 | . . . . . . . 1 . . . . . . . . . . . Squads Dispatched 62 | . 4 . 6 1 . . 7 2 . 9 7 1 7 . 4 . 7 7 Investigation 21 | . 3 . 2 . . . 1 . . 3 3 1 4 . 2 . 2 . Extermination 8 | . . . . . . . . 1 . 3 1 . . . . . 2 1 Reinforcement 16 | . 1 . 2 . . . 2 . . 3 1 . 1 . 1 . 2 3 Assault 12 | . . . 2 1 . . 4 1 . . 1 . 2 . 1 . . . Garrison 5 | . . . . . . . . . . . 1 . . . . . 1 3 Intercept . | . . . . . . . . . . . . . . . . . . . Searches Triggered 1 | . . . . . . . . . . . . . . . . . . 1 Construction Impeded 5 | . . . . . . . 1 . . 1 1 . 1 . 1 . . . Haulers Reinforced . | . . . . . . . . . . . . . . . . . . . Active Scanning Responses . | . . . . . . . . . . . . . . . . . . . Cargo Convoy Interrupts 1 | . . . . . . . . . . . 1 . . . . . . . Stealth | -11 -10 -10 -9 -9 -9 -8 -8 -7 -7 -7 -6 -5 -5 -5 -4 -4 -4 -3 --------- Run | Jun Mat Min Mat Min Exi Min Mat Fac Gar Fac Fac Fac Ext Cet Fac Was Fac Res Distress Signals 26 | . . . . 1 . . 7 . . 2 . . 7 2 3 . 2 2 Communications Jammed . | . . . . . . . . . . . . . . . . . . . Distress Signals . | . . . . . . . . . . . . . . . . . . . Times Spotted 460 | . 20 3 49 17 . 10 70 5 34 28 27 5 71 20 21 6 31 43 Peak Tracking Total 14 | . 2 3 5 5 . 4 7 4 5 5 11 5 6 7 7 5 12 14 Tactical Retreats 31 | . . . 2 . . . 4 . 4 . 1 . 5 . 1 . 6 8 Traps | -11 -10 -10 -9 -9 -9 -8 -8 -7 -7 -7 -6 -5 -5 -5 -4 -4 -4 -3 ------- Run | Jun Mat Min Mat Min Exi Min Mat Fac Gar Fac Fac Fac Ext Cet Fac Was Fac Res Traps Triggered 8 | . 2 . 1 . . . . . . . . . 2 . 1 . 2 . Indirectly . | . . . . . . . . . . . . . . . . . . . Trap Hack Attempts . | . . . . . . . . . . . . . . . . . . . Triggered . | . . . . . . . . . . . . . . . . . . . Disarmed . | . . . . . . . . . . . . . . . . . . . Reprogrammed . | . . . . . . . . . . . . . . . . . . . Reused . | . . . . . . . . . . . . . . . . . . . Traps Extracted . | . . . . . . . . . . . . . . . . . . . Installed . | . . . . . . . . . . . . . . . . . . . Triggered . | . . . . . . . . . . . . . . . . . . . Machines | -11 -10 -10 -9 -9 -9 -8 -8 -7 -7 -7 -6 -5 -5 -5 -4 -4 -4 -3 ---------- Run | Jun Mat Min Mat Min Exi Min Mat Fac Gar Fac Fac Fac Ext Cet Fac Was Fac Res Machines Disabled 34 | . . . 1 . . 1 5 . 4 3 8 1 3 2 1 . 5 . Max in Single Turn 4 | . . . 1 . . . 1 . 2 2 1 1 1 . 1 . 4 . Phase Generator 1 | . . . . . . . . . 1 . . . . . . . . . Machines Repaired . | . . . . . . . . . . . . . . . . . . . Machines Sabotaged . | . . . . . . . . . . . . . . . . . . . Overloaded Fab Kills . | . . . . . . . . . . . . . . . . . . . Hacking | -11 -10 -10 -9 -9 -9 -8 -8 -7 -7 -7 -6 -5 -5 -5 -4 -4 -4 -3 --------- Run | Jun Mat Min Mat Min Exi Min Mat Fac Gar Fac Fac Fac Ext Cet Fac Was Fac Res Machines Accessed 89 | . 8 2 4 . 1 . 17 3 3 11 7 2 17 3 3 . 6 2 Terminals 57 | . 6 1 3 . . . 12 . 3 5 3 2 14 3 1 . 4 . Fabricators 5 | . . . . . . . . 2 . 2 . . . . . . 1 . Repair Stations 9 | . 1 . . . . . 1 . . 2 3 . 1 . . . 1 . Recycling Units 6 | . 1 . . . . . 2 . . 1 . . 2 . . . . . Scanalyzers 6 | . . . 1 . . . 2 . . . 1 . . . 1 . . 1 Garrison Access 4 | . . . . . . . . 1 . 1 . . . . 1 . . 1 Total Hacks 238 | . 24 3 11 . 1 . 49 7 8 30 16 4 44 10 10 . 15 6 Successful 107 | . 12 2 3 . 1 . 29 5 4 12 8 1 22 1 1 . 4 2 Failed 129 | . 11 1 8 . . . 19 2 4 18 8 3 22 9 9 . 11 4 Catastrophic 26 | . 1 . 2 . . . 8 1 1 4 1 . 3 1 2 . 2 . Database Lockouts 2 | . 1 . . . . . 1 . . . . . . . . . . . Manual 81 | . 16 2 7 . . . 22 3 3 12 2 . 9 1 . . 4 . Terminals 151 | . 16 2 9 . . . 38 . 8 13 6 4 31 10 4 . 10 . Fabricators 18 | . . . . . . . . 6 . 9 . . . . . . 3 . Repair Stations 30 | . 6 . . . . . 2 . . 4 9 . 7 . . . 2 . Recycling Units 13 | . 2 . . . . . 3 . . 2 . . 6 . . . . . Scanalyzers 18 | . . . 2 . . . 6 . . . 1 . . . 4 . . 5 Garrison Access 6 | . . . . . . . . 1 . 2 . . . . 2 . . 1 Terminal Hacks 48 | . 4 2 1 . 1 . 15 . 3 4 2 1 11 1 . . 3 . Record 2 | . . . . . 1 . . . . . . . . 1 . . . . Part Schematic 3 | . . . . . . . 2 . . . . . 1 . . . . . Robot Schematic 1 | . . . . . . . . . . 1 . . . . . . . . Robot Analysis 6 | . 3 1 . . . . . . . 2 . . . . . . . . Prototype ID Bank 6 | . . . 1 . . . 4 . . . . . 1 . . . . . Open Door 9 | . . 1 . . . . . . . . . 1 7 . . . . . Branch Access Points 1 | . 1 . . . . . . . . . . . . . . . . . Emergency Access Points 1 | . . . . . . . . . 1 . . . . . . . . . Terminal Index 2 | . . . . . . . 1 . . . . . . . . . 1 . Repair Station Index 1 | . . . . . . . . . . . 1 . . . . . . . Garrison Index 1 | . . . . . . . 1 . . . . . . . . . . . Alert Level 2 | . . . . . . . 1 . . 1 . . . . . . . . Unreport Threat 2 | . . . . . . . 2 . . . . . . . . . . . Locate Traps 4 | . . . . . . . 1 . . . 1 . 1 . . . 1 . Recall Investigation 2 | . . . . . . . 1 . . . . . 1 . . . . . Zone Layout 3 | . . . . . . . 2 . . . . . . . . . 1 . Garrison Registry 1 | . . . . . . . . . 1 . . . . . . . . . Patrol Navigation 1 | . . . . . . . . . 1 . . . . . . . . . Fabricator Hacks 7 | . . . . . . . . 3 . 3 . . . . . . 1 . Network Status 2 | . . . . . . . . 1 . 1 . . . . . . . . Load Schematic 3 | . . . . . . . . 1 . 1 . . . . . . 1 . Build 2 | . . . . . . . . 1 . 1 . . . . . . . . Repair Station Hacks 18 | . 4 . . . . . 2 . . 3 5 . 4 . . . . . Scan Component 10 | . 2 . . . . . 1 . . 2 3 . 2 . . . . . Repair 8 | . 2 . . . . . 1 . . 1 2 . 2 . . . . . Recycling Unit Hacks 4 | . . . . . . . 1 . . . . . 3 . . . . . Retrieve Components 4 | . . . . . . . 1 . . . . . 3 . . . . . Scanalyzer 11 | . . . 2 . . . 6 . . . . . . . 1 . . 2 Insert Component 6 | . . . 1 . . . 3 . . . . . . . 1 . . 1 Analyze 5 | . . . 1 . . . 3 . . . . . . . . . . 1 Garrison Access Hacks 1 | . . . . . . . . 1 . . . . . . . . . . Unlock Access 1 | . . . . . . . . 1 . . . . . . . . . . Unauthorized Hacks 18 | . 4 . . . . . 5 1 1 2 1 . 4 . . . . . Terminals 12 | . 3 . . . . . 4 . 1 . 1 . 3 . . . . . Assimilate 1 | . . . . . . . . . . . . . 1 . . . . . Botnet 11 | . 3 . . . . . 4 . 1 . 1 . 2 . . . . . Fabricators 2 | . . . . . . . . 1 . 1 . . . . . . . . Prioritize 2 | . . . . . . . . 1 . 1 . . . . . . . . Repair Stations . | . . . . . . . . . . . . . . . . . . . Recycling Units 4 | . 1 . . . . . 1 . . 1 . . 1 . . . . . Recyclers 2 | . . . . . . . 1 . . 1 . . . . . . . . Mask 1 | . . . . . . . . . . . . . 1 . . . . . Tunnel 1 | . 1 . . . . . . . . . . . . . . . . . Scanalyzers . | . . . . . . . . . . . . . . . . . . . Garrison Access . | . . . . . . . . . . . . . . . . . . . Data Cores Recovered 2 | . . . . . . . 2 . . . . . . . . . . . Used 1 | . . . . . . . 1 . . . . . . . . . . . Hacking Detections 79 | . 8 1 4 . . . 15 2 3 11 6 2 13 3 3 . 6 2 Full Trace Events 20 | . 2 . 2 . . . 4 . . 3 3 1 1 . 2 . 2 . Feedback Events . | . . . . . . . . . . . . . . . . . . . Feedback Blocked . | . . . . . . . . . . . . . . . . . . . Robot Schematics Acquired 1 | . . . . . . . . . . 1 . . . . . . . . Robots Built 2 | . . . . . . . . . . 2 . . . . . . . . Authchips . | . . . . . . . . . . . . . . . . . . . Time 67 | . . . . . . . . . . 67 . . . . . . . . Total Robot Build Rating 8 | . . . . . . . . . . 8 . . . . . . . . Part Schematics Acquired 7 | . . . 1 . . . 5 . . . . . 1 . . . . . Parts Built 2 | . . . . . . . . 2 . . . . . . . . . . Authchips 1 | . . . . . . . . 1 . . . . . . . . . . Time 31 | . . . . . . . . 31 . . . . . . . . . . Total Part Build Rating 4 | . . . . . . . . 4 . . . . . . . . . . Parts Repaired 8 | . 2 . . . . . 1 . . 1 2 . 2 . . . . . Time 269 | . 52 . . . . . 32 . . 32 106 . 47 . . . . . Parts Recycled . | . . . . . . . . . . . . . . . . . . . Recycled Matter . | . . . . . . . . . . . . . . . . . . . Retrieved Matter . | . . . . . . . . . . . . . . . . . . . Retrieved Components 21 | . . . . . . . 9 . . . . . 12 . . . . . Parts Scanalyzed 6 | . . . 1 . . . 3 . . . . . . . 1 . . 1 Part Schematics Acquired 4 | . . . 1 . . . 3 . . . . . . . . . . . Parts Damaged . | . . . . . . . . . . . . . . . . . . . Bothacking | -11 -10 -10 -9 -9 -9 -8 -8 -7 -7 -7 -6 -5 -5 -5 -4 -4 -4 -3 ------------ Run | Jun Mat Min Mat Min Exi Min Mat Fac Gar Fac Fac Fac Ext Cet Fac Was Fac Res Used RIF Installer . | . . . . . . . . . . . . . . . . . . . Robots Hacked . | . . . . . . . . . . . . . . . . . . . Non-combat . | . . . . . . . . . . . . . . . . . . . Combat . | . . . . . . . . . . . . . . . . . . . Robot Hacks Applied . | . . . . . . . . . . . . . . . . . . . Relay Couplers Released . | . . . . . . . . . . . . . . . . . . . Fabnet Peak Effective % . | . . . . . . . . . . . . . . . . . . . Robots Rewired 9 | . . . . . . . . . . . . . 9 . . . . . Allies Hacked 1 | . . . . . . . . . . 1 . . . . . . . . Hacks Repelled . | . . . . . . . . . . . . . . . . . . . Allies | -11 -10 -10 -9 -9 -9 -8 -8 -7 -7 -7 -6 -5 -5 -5 -4 -4 -4 -3 -------- Run | Jun Mat Min Mat Min Exi Min Mat Fac Gar Fac Fac Fac Ext Cet Fac Was Fac Res Total Allies 30 | . . . . 5 . . . . . 3 . . 19 3 . . . . Largest Group 11 | . . . . 5 2 2 . . . 3 3 . 11 10 4 . . . Highest-Rated Group 624 | . . . . 102 47 47 . . . 90 90 . 470 624 289 . . . Highest-Rated Ally 159 | . . . . 31 31 31 . . . 37 37 . 159 159 137 . . . Total Orders . | . . . . . . . . . . . . . . . . . . . Ally Attacks 462 | . . . . 23 . 27 . . . . 9 . 247 133 23 . . . Total Damage 9677 | . . . . 202 . 288 . . . . 997 . 4652 3014 524 . . . Kills 89 | . . . . 5 . 7 . . . . 6 . 43 25 3 . . . Allies Corrupted . | . . . . . . . . . . . . . . . . . . . Allies Melted . | . . . . . . . . . . . . . . . . . . . Intel | -11 -10 -10 -9 -9 -9 -8 -8 -7 -7 -7 -6 -5 -5 -5 -4 -4 -4 -3 ------- Run | Jun Mat Min Mat Min Exi Min Mat Fac Gar Fac Fac Fac Ext Cet Fac Was Fac Res Robot Analysis Total 6 | . 3 1 . . . . . . . 2 . . . . . . . . Derelict Logs Recovered 3 | . . 2 . 1 . . . . . . . . . . . . . . Drone Launches . | . . . . . . . . . . . . . . . . . . . Drone Recoveries . | . . . . . . . . . . . . . . . . . . . Exploration | -11 -10 -10 -9 -9 -9 -8 -8 -7 -7 -7 -6 -5 -5 -5 -4 -4 -4 -3 ------------- Run | Jun Mat Min Mat Min Exi Min Mat Fac Gar Fac Fac Fac Ext Cet Fac Was Fac Res Turns Passed 21512 | 467 1212 1011 1647 1028 188 826 2890 516 1733 2222 1470 133 3704 584 479 248 828 326 Spaces Moved 10297 | 90 573 582 667 590 126 504 1202 311 720 1073 561 69 1343 199 194 112 982 399 Core 363 | 11 . . . . . . . . 1 . . . . . . . 308 43 Treads 5328 | 79 573 582 360 . . . 10 . 492 1073 434 . 1127 199 194 112 93 . Legs . | . . . . . . . . . . . . . . . . . . . Wheels 3709 | . . . 307 590 126 504 1192 311 227 . 127 69 216 . . . 40 . Hover 541 | . . . . . . . . . . . . . . . . . 541 . Flight 356 | . . . . . . . . . . . . . . . . . . 356 Fastest Speed 34 | 50 160 160 135 150 150 150 135 120 135 170 130 145 145 249 166 160 40 34 Average Speed 164 | 146 160 160 175 150 150 150 186 133 190 170 220 145 218 249 166 165 65 41 Slowest Speed 1550 | 160 160 160 480 150 150 150 240 195 1550 170 255 145 312 255 166 166 160 250 Overloaded Moves . | . . . . . . . . . . . . . . . . . . . Propulsion Burnouts . | . . . . . . . . . . . . . . . . . . . Robots Hopped 7 | . . . . . . . . . . . . . 1 . . . . 6 Cave-ins Triggered 2 | . . . . . . . . . . . . . . . . 2 . . Exploration Rate (%) 53 | 9 77 91 65 93 48 96 96 11 78 31 14 2 97 81 7 81 29 15 Regions Visited 18 Branch Regions 6 Pre-discovered Areas 4 | . 1 1 . 1 1 . . . . . . . . . . . . . Known Exits Taken 2 | . 1 . . . . . . 1 . . . . . . . . . . Unknown Exits Taken 13 | 1 . 1 1 1 1 1 1 . . 1 1 1 1 1 . . 1 . Scrap Searched 7 | . . 2 . 3 . 2 . . . . . . . . . . . . Spaces Dug 51 | . . . 11 14 . . 1 1 . 8 1 . . 1 . 13 1 . Terrain Destroyed 829 | . 2 . 43 79 . . 208 26 143 30 80 4 62 1 35 61 54 1 Melee 11 | . . . . . . . 1 1 . 8 . . . 1 . . . . Projectile 155 | . . . . . . . . . 6 18 17 4 62 . 24 17 6 1 AOE 663 | . 2 . 43 79 . . 207 25 137 4 63 . . . 11 44 48 . Terrain Rammed . | . . . . . . . . . . . . . . . . . . . Walls Destroyed . | . . . . . . . . . . . . . . . . . . . Machines Disabled . | . . . . . . . . . . . . . . . . . . . Actions | -11 -10 -10 -9 -9 -9 -8 -8 -7 -7 -7 -6 -5 -5 -5 -4 -4 -4 -3 --------- Run | Jun Mat Min Mat Min Exi Min Mat Fac Gar Fac Fac Fac Ext Cet Fac Was Fac Res Total 13422 | 413 752 630 958 680 125 548 1592 389 919 1349 717 86 1945 254 270 143 1144 508 Wait 1279 | 301 71 8 74 43 . 26 87 13 22 165 82 4 301 . 18 1 37 26 Move 10263 | 89 572 581 666 589 125 503 1201 310 716 1072 560 68 1340 198 194 111 981 387 Hop 7 | . . . . . . . . . . . . . 1 . . . . 6 Pick Up 331 | 9 22 9 53 4 . 2 42 15 24 15 11 . 48 13 5 4 34 21 Fast Attach . | . . . . . . . . . . . . . . . . . . . Attach 192 | 5 13 2 16 . . . 18 10 15 2 12 2 29 2 6 6 27 27 Detach 32 | . . . . . . . 2 1 2 . 2 . 6 . 3 . 10 6 Swap 162 | . 1 1 22 7 . 2 42 14 22 18 9 2 14 4 1 2 1 . Drop 185 | . 7 9 26 3 . 2 32 12 16 15 6 . 22 15 1 . 18 1 Fire 792 | 9 66 20 97 34 . 13 162 13 84 54 35 10 91 9 42 18 14 21 Melee 56 | . . . 3 . . . 6 1 12 8 . . . 13 . . . 13 Ram 12 | . . . . . . . . . 6 . . . 1 . . . 5 . Kick . | . . . . . . . . . . . . . . . . . . . Crush 22 | . . . 1 . . . . . . . . . 3 . . 1 17 . Escape Stasis 2 | . . . . . . . . . . . . . 2 . . . . . Rewire 87 | . . . . . . . . . . . . . 87 . . . . . Trap . | . . . . . . . . . . . . . . . . . . . Miscellaneous . | . . . . . . . . . . . . . . . . . . . Route ------- -11/Junkyard -10/Materials (discovered 5 exits: *Mat x3 / *Min x2) -10/Mines (discovered 2 exits: *Mat x2) -9/Materials (discovered 3 exits: *Mat / [*Min x2]) -9/Mines (discovered 3 exits: *Mat x2 / *Exi) -9/Exiles (discovered 2 exits: [*Min x2]) -8/Mines (discovered 2 exits: *Mat x2) -8/Materials (discovered 3 exits: *Fac x3) -7/Factory -7/Garrison (discovered 3 exits: *Fac x3) -7/Factory -6/Factory -5/Factory -5/Extension (discovered 3 exits: *Fac x2 / *Cet) -5/Cetus (discovered 2 exits: *Fac / [*Arc]) -4/Factory -4/Waste -4/Factory -3/Research History --------- Turn | Location | Event 50 | -11/Junkyard | Discovered new exit (range 15) 468 | -11/Junkyard | Entered Materials 469 | -10/Materials | Build established: Mutant 707 | -10/Materials | Discovered new exit (range 15) 809 | -10/Materials | Discovered new exit (range 13) 1042 | -10/Materials | Discovered new exit (range 11) 1279 | -10/Materials | Discovered new exit (range 14) 1319 | -10/Materials | Discovered new exit (range 5) 1403 | -10/Materials | Identified exit to Mines 1403 | -10/Materials | Central database locked down 1550 | -10/Materials | Repaired Med. Laser 1578 | -10/Materials | Repaired Lgt. Treads 1680 | -10/Materials | Entered Mines 1705 | -10/Mines | YI-UF0 nonchalantly dropped a Grenade Launcher on the ground 1740 | -10/Mines | Met a Derelict bent on vengeance 1741 | -10/Mines | Learned location of Storage (-7) 1969 | -10/Mines | Discovered new exit (range 15) 1999 | -10/Mines | Learned Materials terminal intel 2143 | -10/Mines | Discovered new exit (range 11) 2241 | -10/Mines | Met a Derelict who couldn't figure out how to use a Trap Extractor 2691 | -10/Mines | Entered Materials 2691 | -9/Materials | Evolved 2 slots: Propulsion x1, Utility x1 2692 | -9/Materials | Loaded intel: 10 terminal locations 2949 | -9/Materials | Lost 3 parts (1p1u1w) 3427 | -9/Materials | Build established: Scavenger-Mutant 3474 | -9/Materials | Discovered new exit (range 5) 3810 | -9/Materials | Build established: Mutant 3836 | -9/Materials | Discovered new exit (range 4) 4105 | -9/Materials | Discovered new exit (range 7) 4291 | -9/Materials | First assault squad dispatched 4338 | -9/Materials | Entered Mines 4369 | -9/Mines | Discovered new exit (range 15) 4467 | -9/Mines | A weapon hastily lodged in a ceiling crevice suddenly fell to the ground 4513 | -9/Mines | Deemed a non-threat by the Exiles lab entrance 4513 | -9/Mines | Discovered new exit (range 5) 4579 | -9/Mines | Discovered new exit (range 14) 4580 | -9/Mines | A Derelict revealed a hidden shortcut to a safe place 4583 | -9/Mines | Received a Rocket Launcher from a helpful Derelict 4661 | -9/Mines | Assisted by bots powering up and referring to "LRC-V3" 4963 | -9/Mines | Received a Mining Laser from a helpful Derelict 5183 | -9/Mines | Found a hidden stash of uninstalled traps 5205 | -9/Mines | Met a Derelict testing a Signal Generator 5366 | -9/Mines | Entered Exiles 5366 | -9/Exiles | Accompanied by 2 allies 5389 | -9/Exiles | Discovered new exit (range 15) 5407 | -9/Exiles | Met 8R-AWN 5429 | -9/Exiles | Met EX-HEX 5486 | -9/Exiles | Met EX-DEC 5497 | -9/Exiles | Learned location of Zion (-7) 5540 | -9/Exiles | Discovered new exit (range 10) 5554 | -9/Exiles | Entered Mines 5554 | -8/Mines | Accompanied by 2 allies 5602 | -8/Mines | Core integrity fell below 50% 5703 | -8/Mines | Discovered new exit (range 11) 6317 | -8/Mines | Discovered new exit (range 16) 6380 | -8/Mines | Entered Materials 6380 | -8/Materials | Evolved 2 slots: Propulsion x1, Utility x1 6659 | -8/Materials | Discovered new exit (range 15) 6766 | -8/Materials | Build established: Scavenger-Mutant 7709 | -8/Materials | Discovered new exit (range 5) 7825 | -8/Materials | Repaired Arm. Wheel 7980 | -8/Materials | First assault squad dispatched 8238 | -8/Materials | Discovered new exit (range 12) 8421 | -8/Materials | Central database locked down 8898 | -8/Materials | Destroyed 10 combat bots 8991 | -8/Materials | Build established: Mutant 9184 | -8/Materials | Sterilization system engaged 9184 | -8/Materials | Non-combat units ordered to evacuate 9270 | -8/Materials | Entered Factory 9270 | -7/Factory | Evolved 2 slots: Utility x2 9367 | -7/Factory | Fabricated Arm. Wheel (x2) 9499 | -7/Factory | Build established: Hacker-Mutant 9670 | -7/Factory | First assault squad dispatched 9785 | -7/Factory | Identified exit to Garrison 9786 | -7/Factory | Entered Garrison 9834 | -7/Garrison | Phase Generator disabled 9981 | -7/Garrison | Discovered new exit (range 57) 9981 | -7/Garrison | Discovered new exit (range 77) 9981 | -7/Garrison | Discovered new exit (range 50) 9993 | -7/Garrison | Build established: Mutant 10311 | -7/Garrison | Lost 7 parts (4n3u) 10649 | -7/Garrison | Found Quantum Capacitor 10708 | -7/Garrison | Triggered checkpoint 10861 | -7/Garrison | Attempted to access garrison exit controls, blocked by remote lockdown 10924 | -7/Garrison | Triggered checkpoint 11000 | -7/Garrison | Triggered checkpoint 11196 | -7/Garrison | Attempted to access garrison exit controls, blocked by remote lockdown 11348 | -7/Garrison | Triggered checkpoint 11502 | -7/Garrison | Triggered checkpoint 11519 | -7/Garrison | Entered Factory 13001 | -7/Factory | Repaired Cooling System 13355 | -7/Factory | Discovered new exit (range 15) 13673 | -7/Factory | Fabricated P-60 Hacker (x2) 13713 | -7/Factory | Hacker 4b assimilated hostile G-47 Trooper 13741 | -7/Factory | Entered another Factory area 13741 | -6/Factory | Accompanied by 3 allies 13741 | -6/Factory | Evolved 2 slots: Weapon x2 14048 | -6/Factory | Build established: Tank 14241 | -6/Factory | Repaired Hrd. Heavy Armor Plating 14356 | -6/Factory | Repaired Imp. Heavy Treads 14482 | -6/Factory | Discovered new exit (range 12) 14973 | -6/Factory | Cargo convoy interrupted 15027 | -6/Factory | Destroyed 13 combat bots 15128 | -6/Factory | Garrison activated, responded to threat 15141 | -6/Factory | First assault squad dispatched 15211 | -6/Factory | Entered another Factory area 15211 | -5/Factory | Evolved 2 slots: Power x1, Utility x1 15332 | -5/Factory | Discovered new exit (range 10) 15344 | -5/Factory | Entered Extension 15347 | -5/Extension | Disrupted transfer network 15603 | -5/Extension | Rescued a captive Derelict 15603 | -5/Extension | Rescued a captive Derelict 15743 | -5/Extension | Rescued a captive Derelict 15744 | -5/Extension | Rescued a captive Derelict 16476 | -5/Extension | Spotted B-75 Beast 16512 | -5/Extension | Destroyed B-75 Beast 16528 | -5/Extension | Spotted B-75 Beast 17038 | -5/Extension | Lost 3 parts (1n2u) 17366 | -5/Extension | Destroyed B-75 Beast 17389 | -5/Extension | Lost 3 parts (1n1u1w) 17396 | -5/Extension | Build established: Scavenger-Tank 17461 | -5/Extension | Discovered new exit (range 3) 17529 | -5/Extension | Rescued A7 17587 | -5/Extension | Lost 3 parts (1u2w) 17696 | -5/Extension | Repaired Hvy. Siege Treads 17717 | -5/Extension | Repaired Imp. Treads 17811 | -5/Extension | Rescued a captive Derelict 17890 | -5/Extension | Rescued a captive Derelict 18108 | -5/Extension | Rescued a captive Derelict 18110 | -5/Extension | Rescued a captive Derelict 18644 | -5/Extension | First assault squad dispatched 18962 | -5/Extension | Discovered new exit (range 16) 18965 | -5/Extension | Discovered new exit (range 15) 19048 | -5/Extension | Entered Cetus 19048 | -5/Cetus | Accompanied by 10 allies (A7) 19053 | -5/Cetus | Acquired a Cetus Manufacturing Module code from A7 19079 | -5/Cetus | Spotted Cetus Guard 19079 | -5/Cetus | Spotted Cetus Guard 19085 | -5/Cetus | Spotted Cetus Guard 19091 | -5/Cetus | Spotted Cetus Guard 19091 | -5/Cetus | Allies destroyed Cetus Guard 19095 | -5/Cetus | Allies destroyed Cetus Guard 19095 | -5/Cetus | Allies destroyed Cetus Guard 19104 | -5/Cetus | Allies destroyed Cetus Guard 19211 | -5/Cetus | Started Cetus Manufacturing Module 19236 | -5/Cetus | Manufactured an Enhanced Grunt 19261 | -5/Cetus | Manufactured an Enhanced Grunt 19279 | -5/Cetus | Escorted A7 to Cetus Mainframe 19286 | -5/Cetus | Manufactured an Enhanced Grunt 19302 | -5/Cetus | Cetus Manufacturing Module disabled 19474 | -5/Cetus | Discovered new exit (range 16) 19529 | -5/Cetus | Spotted Cetus Guard 19531 | -5/Cetus | Spotted Cetus Guard 19531 | -5/Cetus | Spotted Cetus Guard 19534 | -5/Cetus | Spotted Cetus Guard 19549 | -5/Cetus | Destroyed Cetus Guard 19552 | -5/Cetus | Allies destroyed Cetus Guard 19552 | -5/Cetus | Destroyed Cetus Guard 19552 | -5/Cetus | Allies destroyed Cetus Guard 19564 | -5/Cetus | Discovered new exit (range 15) 19609 | -5/Cetus | Met Revision 17 19632 | -5/Cetus | Entered Factory 19632 | -4/Factory | Accompanied by 4 allies (A7) 19632 | -4/Factory | Evolved 2 slots: Propulsion x2 19637 | -4/Factory | Received a hacking code to weaken MAIN.C 19882 | -4/Factory | First assault squad dispatched 20105 | -4/Factory | Destroyed 9 combat bots 20111 | -4/Factory | Sucked down chute 20111 | -4/Factory | Entered Waste 20126 | -4/Waste | EMP discharged 20133 | -4/Waste | Spotted C-40 Crusher 20138 | -4/Waste | Spotted C-40 Crusher 20142 | -4/Waste | Destroyed C-40 Crusher 20145 | -4/Waste | Spotted C-40 Crusher 20145 | -4/Waste | Spotted C-40 Crusher 20152 | -4/Waste | Crushed by Compactor (1 part destroyed) 20163 | -4/Waste | Crushed by falling debris 20166 | -4/Waste | Spotted C-40 Crusher 20181 | -4/Waste | Spotted C-40 Crusher 20196 | -4/Waste | Crushed by falling debris 20196 | -4/Waste | System corruption reached 10% 20197 | -4/Waste | Crushed by Compactor (0 parts destroyed, 1 dropped) 20200 | -4/Waste | Crushed by Compactor (0 parts destroyed, 1 dropped) 20226 | -4/Waste | EMP discharged 20230 | -4/Waste | Crushed by Compactor (0 parts destroyed, 1 dropped) 20232 | -4/Waste | Destroyed C-40 Crusher 20236 | -4/Waste | Crushed by Compactor (1 part destroyed) 20259 | -4/Waste | Crushed by Compactor (1 part destroyed, 1 dropped) 20290 | -4/Waste | Lost 7 parts (1p5u1w) 20303 | -4/Waste | Crushed by Compactor (1 part destroyed) 20326 | -4/Waste | EMP discharged 20340 | -4/Waste | Discovered new exit (range 12) 20359 | -4/Waste | Entered Factory 20382 | -4/Factory | Lost 3 parts (1p2n) 20516 | -4/Factory | Spotted B-86 Titan 20552 | -4/Factory | Lost 4 parts (1n2u1w) 20559 | -4/Factory | Build established: Mutant 21076 | -4/Factory | Garrison activated, responded to threat 21108 | -4/Factory | Core integrity fell below 50% 21145 | -4/Factory | System corruption reached 30% 21180 | -4/Factory | Discovered new exit (range 8) 21187 | -4/Factory | Entered Research 21187 | -3/Research | Evolved 2 slots: Utility x2 21193 | -3/Research | Lost 9 parts (5n4u) 21266 | -3/Research | Garrison activated, responded to threat 21286 | -3/Research | Lost 8 parts (2p3n1u2w) 21353 | -3/Research | Found Enh. Force Lance 21354 | -3/Research | Found Enh. Force Lance 21401 | -3/Research | Core integrity fell below 50% 21442 | -3/Research | Lost 4 parts (3n1w) 21485 | -3/Research | Search patrols dispatched 21499 | -3/Research | Core integrity fell below 20% 21513 | -3/Research | Destroyed by G-67 Veteran with Field Laser Last Messages --------------- 21467_ S-43 Plague destroyed. 21472_ Acquired Lgt. Antimatter Reactor. 21473_ ALERT: Hostiles spotted, dispatching reinforcements to Terminal R015. 21483_ Destroyed Xenon Bombardment Thruster. 21485_ ALERT: Heightened foreign activity detected, multiple search patrols dispatched. 21486_ S-43 Plague destroyed. 21489_ Acquired 34 matter. 21492_ Q-thruster destroyed. 21495_ P-80 Master resets P-80 Master, system corruption cleaned. 21501_ Exp. Energy Well destroyed. 21504_ Enh. Force Lance destroyed. 21507_ P-80 Master suffers critical hit (Impale). 21507_ Destroyed Gamma Rifle. 21507_ Destroyed Unknown Hover Unit. 21511_ P-80 Master suffers critical hit (Impale). 21511_ P-80 Master destroyed. 21512_ Acquired 70 matter. 21513_ E,9JLP/YSPCLZY%PX33NB4#G,IJ 5 Map ----- +----------------------------------------------------+ | ?????????????????????????# # #?????????? | | ?????????????????????????# = # """#?????????? | | ?????????????????????????# + = """#?????????? | | ?????????????????????????# # R"#?????????? | | ?????????????????????????# # """#?????????? | | ?????????????????????????# #? "" #?????????? | | ?????????????????????????## ###? #?????????? | | ??????????????????????????# #???? = / ????????? | | ??????????????????????????# #????######## ???????? | | ??????????????????????????# #????????????????????? | | ??????????????############# ###########??????????? | | ???????????? ### ??????? | | ???????????? #?????? | | ???????????? #?????? | | ????????????? """" % ####???????? | | ??????????????????""" ####"##### #??????????? | | ??????????????????""" # #?? #??????????? | | ??????????????????""" ?# #???? #??????????? | | ?????????????????? ??# #????????????????? | | ?????????????????? ???# #????????????????? | | ????????????????? ????# #????????????????? | | ???????????????? ?????# = #????????????????? | | ????????????????##?#????####g#########???????????? | | ???????????????????# ??# #???????????? | | ???????????????????# =#! #???????????? | | ???????????????????# !/@ #???????????? | | ???????????????????+ |#* #???????????? | | ???????????????????# ?# #???????????? | | ???????????????????+ ??##############???????????? | | ???????????????????##????????????????????????????? | | ?????????????????????????????????????????????????? | | ?????????????????????????????????????????????????? | | ?????????????????????????????????????????????????? | | ?????????????????????????????????????????????????? | | ?????????????????????????????????????????????????? | | ?????????????????????????????????????????????????? | | ?????????????????????????????????????????????????? | | ?????????????????????????????????????????????????? | | ?????????????????????????????????????????????????? | | ?????????????????????????????????????????????????? | | ?????????????????????????????????????????????????? | | ?????????????????????????????????????????????????? | | ?????????????????????????????????????????????????? | | ?????????????????????????????????????????????????? | | ?????????????????????????????????????????????????? | | ?????????????????????????????????????????????????? | | ?????????????????????????????????????????????????? | | ?????????????????????????????????????????????????? | | ?????????????????????????????????????????????????? | | ?????????????????????????????????????????????????? | +----------------------------------------------------+ Best States ------------- Heat Dissipation 119 Energy Generation 41 Energy Capacity 1075 Matter Stores 300 Matter Capacity 300 Sight Range 16 Robot Scan Range 16 Terrain Scan Density 10 Power Amplification 30 Armor Coverage 1500 Resistance: KI 30 Resistance: TH 10 Resistance: EM 15 Weapon Cycling 20 Phase Shifting 5 Evasion (%) 63 Targeting Accuracy 12 Recoil Reduction 6 Offensive Hacking 20 Defensive Hacking 12 Authchip Count 2 Item Schematics ----------------- Huge Storage Unit | -9/Materials | Scanalyzed Cooling System | -8/Materials | Scanalyzed Rocket Launcher | -8/Materials | Scanalyzed Hrd. Medium Armor Plating | -8/Materials | Scanalyzed Arm. Wheel | -8/Materials | Hacked Imp. Treads | -8/Materials | Hacked Imp. Heavy Siege Treads | -5/Extension | Hacked Robot Schematics ------------------ P-60 Hacker | -7/Factory | Hacked Fabricated ------------ Arm. Wheel | x2 | -7/Factory | Authchip P-60 Hacker | x2 | -7/Factory Alien Tech Used ----------------- None Achievements -------------- None Challenges ------------ None Game ------ Seed PotentialInsulatedPod Manual? 0 Play Time 03:05:55 Cumulative 165.4 hours Start 2024.01.01 @ 17:31:01 End 2024.01.01 @ 20:42:08 Sessions 1 Manual Loads 0 Difficulty Rogue Special Mode None Game No. 144 Rogue 144 Adventurer 0 Explorer 0 Win Type - Total 1 Types 1/0/0/0/0/0/0/0/0 Lore% 55 Gallery% 66 Achievement% 53 Wizard Run 0 Options --------- ASCII 0 Keyboard 0 Movement Numpad Keybinds 0 Fullscreen 2 Font 18/Smallcaps Map View 76x50 Tactical HUD 1 Map Filters NONE Filters NONE Steam 1 RUN: 84b7f589-3e98-42d8-a70f-5700b55e8d08